fUST/lending_fUST_20240608
["ID","MTS","AMOUNT","RATE_DAILY","PERIOD"]
[328773437,1717782641582,-500.0,0.00021917,3]
[328773439,1717782641592,-509.88683189,0.00021917,3]
[328773441,1717782641607,-500.0,0.00021917,3]
[328773443,1717782641617,-515.19738259,0.00021917,3]
[328773445,1717782641627,-525.91909085,0.00021917,3]
[328773447,1717782641637,-539.82478735,0.00021917,3]
[328773449,1717782641648,-599.13690227,0.00021917,3]
[328773451,1717782641658,-500.0,0.00021917,3]
[328773453,1717782641668,-500.0,0.00021917,3]
[328773455,1717782641682,-500.0,0.00021917,3]
[328773457,1717782641692,-498.4414684,0.00021917,3]
[328773469,1717782641702,-500.0,0.00021917,3]
[328773472,1717782641826,-500.0,0.00021917,3]
[328773474,1717782641836,-500.0,0.00021917,2]
[328773476,1717782641845,-500.0,0.00021917,3]
[328773478,1717782641854,-500.0,0.00021917,3]
[328773480,1717782641864,-2882.45,0.00021917,3]
[328773482,1717782641874,-1405.25,0.00021917,3]
[328773484,1717782641883,-500.0,0.00021917,3]
[328773486,1717782641893,-500.0,0.00021917,3]
[328773488,1717782641902,-500.0,0.00021917,3]
[328773489,1717782641911,-500.0,0.00021917,3]
[328773490,1717782641920,-501.56,0.00021917,3]
[328773491,1717782641932,-500.0,0.00021917,3]
[328773492,1717782641942,-500.0,0.00021917,3]
[328773493,1717782641951,-500.0,0.00021917,3]
[328773494,1717782641961,-500.0,0.00021917,3]
[328773495,1717782641971,-500.0,0.00021917,3]
[328773496,1717782641980,-518.82245021,0.00021917,3]
[328773497,1717782641989,-500.0,0.00021917,3]
[328773498,1717782641999,-500.0,0.00021917,3]
[328773499,1717782642008,-500.0,0.00021917,3]
[328773500,1717782642018,-1107.7,0.00021917,3]
[328773501,1717782642027,-500.0,0.00021917,3]
[328773502,1717782642036,-523.92375756,0.00021917,3]
[328773503,1717782642046,-500.0,0.00021917,3]
[328773504,1717782642055,-500.0,0.00021917,3]
[328773505,1717782642064,-500.0,0.00021917,3]
[328773506,1717782642074,-500.0,0.00021917,3]
[328773507,1717782642084,-500.0,0.00021917,3]
[328773508,1717782642094,-344.60145936,0.00021917,3]
[328773509,1717782642104,-653.88,0.00021917,3]
[328773511,1717782642113,-1060.79,0.00021917,3]
[328773513,1717782642123,-500.0,0.00021917,3]
[328773515,1717782642133,-397.47324119,0.00021917,3]
[328773517,1717782642143,-500.0,0.00021917,3]
[328773519,1717782642152,-500.0,0.00021917,3]
[328773521,1717782642162,-500.0,0.00021917,3]
[328773523,1717782642172,-798.1,0.00021917,3]
[328773525,1717782642183,-500.0,0.00021917,3]
[328773527,1717782642199,-500.0,0.00021917,3]
[328773529,1717782642208,-500.0,0.00021917,3]
[328773531,1717782642217,-500.0,0.00021917,3]
[328773533,1717782642227,-500.0,0.00021917,3]
[328773535,1717782642237,-500.0,0.00021917,3]
[328773537,1717782642246,-500.0,0.00021917,3]
[328773539,1717782642256,-509.40884718,0.00021917,3]
[328773541,1717782642266,-500.0,0.00021917,3]
[328773543,1717782642276,-521.26440719,0.00021917,3]
[328773545,1717782642286,-500.0,0.00021917,3]
[328773547,1717782642296,-2899.44,0.00021917,3]
[328773549,1717782642306,-302.67121593,0.00021917,3]
[328773551,1717782642322,-500.0,0.00021917,3]
[328773553,1717782642340,-500.0,0.00021917,3]
[328773555,1717782642350,-2751.09,0.00021917,3]
[328773557,1717782642359,-547.91847144,0.00021917,3]
[328773559,1717782642369,-500.0,0.00021917,3]
[328773561,1717782642380,-500.0,0.00021917,3]
[328773563,1717782642389,-948.69,0.00021917,3]
[328773565,1717782642399,-2395.83,0.00021917,4]
[328773567,1717782642408,-500.0,0.00021917,3]
[328773569,1717782642418,-511.01430458,0.00021917,3]
[328773572,1717782642428,-1551.51,0.00021917,3]
[328773573,1717782642437,-549.82116385,0.00021917,3]
[328773575,1717782642447,-500.0,0.00021917,3]
[328773578,1717782642457,-500.0,0.00021917,3]
[328773580,1717782642466,-500.0,0.00021917,3]
[328773582,1717782642476,-500.0,0.00021917,3]
[328773584,1717782642486,-500.0,0.00021917,3]
[328773586,1717782642496,-500.0,0.00021917,3]
[328773588,1717782642506,-504.91861196,0.00021917,3]
[328773589,1717782642515,-500.0,0.00021917,3]
[328773592,1717782642526,-508.69665786,0.00021917,3]
[328773594,1717782642535,-500.0,0.00021917,3]
[328773595,1717782642545,-500.0,0.00021917,3]
[328773598,1717782642554,-513.81,0.00021917,3]
[328773600,1717782642565,-500.0,0.00021917,3]
[328773602,1717782642574,-500.0,0.00021917,3]
[328773604,1717782642584,-500.0,0.00021917,3]
[328773606,1717782642599,-659.39,0.00021917,3]
[328773608,1717782642609,-529.56748675,0.00021917,3]
[328773610,1717782642618,-500.0,0.00021917,3]
[328773612,1717782642628,-500.0,0.00021917,3]
[328773614,1717782642639,-500.0,0.00021917,3]
[328773616,1717782642648,-500.0,0.00021917,3]
[328773618,1717782642659,-500.0,0.00021917,3]
[328773620,1717782642668,-538.14280348,0.00021917,3]
[328773622,1717782642679,-846.05,0.00021917,3]
[328773624,1717782642689,-500.0,0.00021917,3]
[328773626,1717782642699,-500.0,0.00021917,3]
[328773628,1717782642709,-500.0,0.00021917,3]
[328773630,1717782642719,-504.22598702,0.00021917,3]
[328773632,1717782642729,-500.0,0.00021917,3]
[328773634,1717782642738,-500.0,0.00021917,3]
[328773636,1717782642748,-500.0,0.00021917,3]
[328773638,1717782642758,-1061.54,0.00021917,3]
[328773640,1717782642769,-541.21,0.00021917,3]
[328773642,1717782642779,-520.86958288,0.00021917,3]
[328773644,1717782642788,-500.0,0.00021917,3]
[328773646,1717782642798,-1075.82,0.00021917,3]
[328773648,1717782642807,-500.0,0.00021917,3]
[328773650,1717782642817,-500.0,0.00021917,3]
[328773652,1717782642827,-516.93398246,0.00021917,3]
[328773654,1717782642836,-500.0,0.00021917,3]
[328773656,1717782642846,-513.49630905,0.00021917,3]
[328773658,1717782642856,-500.0,0.00021917,3]
[328773660,1717782642867,-516.8582438,0.00021917,3]
[328773662,1717782642876,-1619.38,0.00021917,3]
[328773664,1717782642886,-3489.06,0.00021917,3]
[328773666,1717782642896,-165.69240836,0.00021917,3]
[328773668,1717782642906,-500.0,0.00021917,3]
[328773670,1717782642915,-500.0,0.00021917,3]
[328773672,1717782642925,-500.0,0.00021917,3]
[328773674,1717782642935,-500.0,0.00021917,3]
[328773676,1717782642944,-500.0,0.00021917,3]
[328773678,1717782642955,-2782.36,0.00021917,3]
[328773680,1717782642964,-500.0,0.00021917,3]
[328773682,1717782642974,-500.0,0.00021917,3]
[328773684,1717782642984,-500.0,0.00021917,3]
[328773686,1717782642994,-500.0,0.00021917,3]
[328773688,1717782643003,-500.0,0.00021917,3]
[328773690,1717782643012,-500.0,0.00021917,3]
[328773692,1717782643022,-357.6149747,0.00021917,3]
[328773694,1717782643031,-500.0,0.00021917,3]
[328773696,1717782643040,-500.0,0.00021917,3]
[328773698,1717782643050,-500.0,0.00021917,3]
[328773700,1717782643059,-500.0,0.00021917,3]
[328773702,1717782643070,-500.0,0.00021917,3]
[328773704,1717782643079,-500.0,0.00021917,3]
[328773706,1717782643089,-941.47,0.00021917,3]
[328773708,1717782643098,-501.05645778,0.00021917,3]
[328773710,1717782643107,-532.01396493,0.00021917,3]
[328773712,1717782643117,-500.0,0.00021917,3]
[328773714,1717782643127,-556.17008957,0.00021917,3]
[328773716,1717782643136,-500.0,0.00021917,3]
[328773718,1717782643146,-370.62847638,0.00021917,3]
[328773720,1717782643156,-500.55,0.00021917,3]
[328773722,1717782643166,-500.0,0.00021917,3]
[328773724,1717782643176,-500.0,0.00021917,3]
[328773726,1717782643186,-509.87569045,0.00021917,3]
[328773728,1717782643195,-500.0,0.00021917,3]
[328773730,1717782643205,-1432.35,0.00021917,3]
[328773732,1717782643215,-225.0499854,0.00021917,3]
[328773734,1717782643226,-503.51768514,0.00021917,3]
[328773737,1717782643235,-258.18283549,0.00021917,3]
[328773740,1717782643246,-500.0,0.00021917,3]
[328773742,1717782643255,-500.0,0.00021917,3]
[328773744,1717782643265,-2185.01,0.00021917,3]
[328773746,1717782643274,-513.35233805,0.00021917,3]
[328773748,1717782643284,-500.0,0.00021917,3]
[328773750,1717782643293,-500.0,0.00021917,3]
[328773761,1717782643385,-157.7590276,0.00021917,3]
[328773763,1717782643395,-500.0,0.00021917,3]
[328773765,1717782643405,-292.58452767,0.00021917,3]
[328773767,1717782643414,-500.0,0.00021917,3]
[328773769,1717782643423,-500.0,0.00021917,3]
[328773771,1717782643433,-1372.11,0.00021917,3]
[328773773,1717782643442,-518.67209707,0.00021917,3]
[328773775,1717782643452,-500.0,0.00021917,3]
[328773777,1717782643462,-504.73521069,0.00021917,3]
[328773779,1717782643472,-500.0,0.00021917,3]
[328773781,1717782643482,-553.47572311,0.00021917,3]
[328773783,1717782643491,-502.30347264,0.00021917,3]
[328773785,1717782643501,-500.0,0.00021917,3]
[328773787,1717782643511,-500.0,0.00021917,3]
[328773789,1717782643520,-900.97,0.00021917,3]
[328773791,1717782643529,-480.08538823,0.00021917,3]
[328773793,1717782643539,-1000.0,0.00021917,3]
[328773795,1717782643549,-509.69066738,0.00021917,3]
[328773797,1717782643558,-567.16,0.00021917,3]
[328773799,1717782643570,-985.33,0.00021917,3]
[328773801,1717782643580,-500.0,0.00021917,3]
[328773803,1717782643590,-500.0,0.00021917,3]
[328773805,1717782643602,-500.0,0.00021917,3]
[328773807,1717782643611,-507.26573384,0.00021917,3]
[328773809,1717782643620,-158.05071722,0.00021917,3]
[328773811,1717782643630,-500.0,0.00021917,3]
[328773813,1717782643640,-500.0,0.00021917,3]
[328773815,1717782643649,-500.0,0.00021917,3]
[328773817,1717782643659,-500.0,0.00021917,3]
[328773819,1717782643668,-504.07513761,0.00021917,3]
[328773821,1717782643682,-507.06581276,0.00021917,3]
[328773823,1717782643692,-501.57668032,0.00021917,3]
[328773825,1717782643701,-500.0,0.00021917,3]
[328773827,1717782643711,-500.0,0.00021917,3]
[328773829,1717782643721,-501.52669242,0.00021917,3]
[328773831,1717782643730,-500.0,0.00021917,3]
[328773833,1717782643740,-500.0,0.00021917,3]
[328773835,1717782643750,-500.0,0.00021917,3]
[328773836,1717782643759,-529.59698056,0.00021917,3]
[328773837,1717782643768,-3532.11,0.00021917,3]
[328773838,1717782643779,-769.41,0.00021917,3]
[328773839,1717782643788,-500.0,0.00021917,3]
[328773840,1717782643798,-500.62149315,0.00021917,3]
[328773841,1717782643807,-236.64770793,0.00021917,7]
[328773842,1717782643816,-500.54611636,0.00021917,3]
[328773843,1717782643826,-500.0,0.00021917,3]
[328773844,1717782643836,-500.36045203,0.00021917,2]
[328773845,1717782643845,-653.49,0.00021917,3]
[328773846,1717782643854,-172.62662961,0.00021917,3]
[328773848,1717782643864,-512.33350375,0.00021917,3]
[328773850,1717782643874,-500.0,0.00021917,3]
[328773851,1717782643884,-500.0,0.00021917,3]
[328773852,1717782643893,-521.73799642,0.00021917,3]
[328773853,1717782643903,-568.49,0.00021917,3]
[328773854,1717782643913,-500.0,0.00021917,3]
[328773855,1717782643923,-500.0,0.00021917,3]
[328773856,1717782643932,-500.0,0.00021917,3]
[328773857,1717782643942,-500.0,0.00021917,3]
[328773858,1717782643951,-500.0,0.00021917,3]
[328773859,1717782643961,-372.24341148,0.00021917,3]
[328773860,1717782643973,-500.0,0.00021917,3]
[328773861,1717782643982,-500.0,0.00021917,3]
[328773863,1717782643992,-500.0,0.00021917,3]
[328773865,1717782644002,-503.61,0.00021917,3]
[328773867,1717782644012,-500.0,0.00021917,3]
[328773869,1717782644021,-500.0,0.00021917,3]
[328773871,1717782644031,-500.0,0.00021917,3]
[328773873,1717782644041,-500.0,0.00021917,3]
[328773875,1717782644051,-500.0,0.00021917,3]
[328773877,1717782644060,-3119.07,0.00021917,3]
[328773879,1717782644071,-500.0,0.00021917,3]
[328773881,1717782644080,-500.0,0.00021917,3]
[328773883,1717782644090,-1671.96,0.00021917,3]
[328773885,1717782644100,-500.0,0.00021917,3]
[328773887,1717782644111,-2606.15,0.00021917,3]
[328773889,1717782644120,-1193.89,0.00021917,3]
[328773891,1717782644130,-721.02,0.00021917,3]
[328773892,1717782644140,-1126.81,0.00021917,3]
[328773894,1717782644150,-500.0,0.00021917,3]
[328773896,1717782644159,-502.31238021,0.00021917,3]
[328773898,1717782644169,-4188.26,0.00021917,3]
[328773899,1717782644178,-501.9405511,0.00021917,3]
[328773900,1717782644188,-500.35043221,0.00021917,3]
[328773901,1717782644197,-502.49170773,0.00021917,3]
[328773903,1717782644207,-500.0,0.00021917,3]
[328773905,1717782644218,-800.47,0.00021917,3]
[328773907,1717782644228,-520.49,0.00021917,3]
[328773909,1717782644237,-2874.03,0.00021917,3]
[328773911,1717782644247,-2874.03,0.00021917,3]
[328773913,1717782644257,-2874.03,0.00021917,3]
[328773915,1717782644266,-2874.03,0.00021917,3]
[328773916,1717782644276,-2874.03,0.00021917,3]
[328773918,1717782644286,-1809.97,0.00021917,3]
[328773919,1717782644295,-2874.03,0.00021917,3]
[328773920,1717782644305,-2874.03,0.00021917,3]
[328773921,1717782644316,-2874.03,0.00021917,3]
[328773922,1717782644325,-2874.03,0.00021917,3]
[328773923,1717782644335,-2874.03,0.00021917,3]
[328773924,1717782644345,-2874.03,0.00021917,3]
[328773925,1717782644354,-2874.03,0.00021917,3]
[328773926,1717782644364,-2874.03,0.00021917,3]
[328773927,1717782644373,-2874.03,0.00021917,3]
[328773928,1717782644383,-2874.03,0.00021917,3]
[328773929,1717782644393,-502.68226518,0.00021917,3]
[328773930,1717782644403,-500.0,0.00021917,3]
[328773931,1717782644413,-2874.03,0.00021917,3]
[328773932,1717782644422,-2874.03,0.00021917,3]
[328773933,1717782644432,-501.74958106,0.00021917,3]
[328773934,1717782644441,-2874.03,0.00021917,3]
[328773935,1717782644451,-2874.03,0.00021917,3]
[328773936,1717782644460,-500.0,0.00021917,3]
[328773937,1717782644469,-500.0,0.00021917,3]
[328773938,1717782644479,-500.0,0.00021917,3]
[328773939,1717782644489,-500.0,0.00021917,3]
[328773940,1717782644498,-500.0,0.00021917,3]
[328773941,1717782644508,-1058.06,0.00021917,3]
[328773942,1717782644517,-500.0,0.00021917,3]
[328773943,1717782644527,-500.25605501,0.00021917,3]
[328773944,1717782644537,-1343.81,0.00021917,3]
[328773945,1717782644546,-500.0,0.00021917,3]
[328773946,1717782644555,-520.92564057,0.00021917,3]
[328773947,1717782644567,-501.70452986,0.00021917,3]
[328773948,1717782644577,-500.0,0.00021917,3]
[328773949,1717782644586,-500.0,0.00021917,3]
[328773950,1717782644601,-500.0,0.00021917,2]
[328773951,1717782644610,-500.0,0.00021917,3]
[328773952,1717782644620,-4932.54,0.00021917,3]
[328773953,1717782644630,-519.49530556,0.00021917,3]
[328773954,1717782644642,-500.956825,0.00021917,3]
[328773955,1717782644651,-515.97521141,0.00021917,3]
[328773956,1717782644662,-425.57724528,0.00021917,3]
[328773957,1717782644674,-500.36131839,0.00021917,3]
[328773958,1717782644684,-500.0,0.00021917,3]
[328773959,1717782644693,-984.67,0.00021917,3]
[328773960,1717782644703,-500.0,0.00021917,3]
[328773961,1717782644713,-500.0,0.00021917,3]
[328773962,1717782644722,-500.0,0.00021917,3]
[328773963,1717782644732,-500.0,0.00021917,3]
[328773964,1717782644819,-500.0,0.00021917,3]
[328773965,1717782644828,-500.0,0.00021917,3]
[328773966,1717782644838,-500.0,0.00021917,3]
[328773967,1717782644847,-500.0,0.00021917,3]
[328773968,1717782644860,-500.0,0.00021917,3]
[328773969,1717782644870,-500.0,0.00021917,3]
[328773970,1717782644880,-500.0,0.00021917,3]
[328773971,1717782644890,-500.0,0.00021917,3]
[328773972,1717782644899,-310.58742665,0.00021917,3]
[328773973,1717782644908,-619.50111981,0.00021917,3]
[328773974,1717782644918,-500.0,0.00021917,3]
[328773975,1717782644927,-3287.13,0.00021917,3]
[328773976,1717782644936,-12865.56,0.00021917,3]
[328773977,1717782644946,-263.98149632,0.00021917,3]
[328773978,1717782644955,-500.0,0.00021917,3]
[328773979,1717782644965,-501.08619803,0.00021917,3]
[328773980,1717782644974,-500.0,0.00021917,3]
[328773981,1717782644984,-625.14886443,0.00021917,3]
[328773982,1717782644994,-500.0,0.00021917,3]
[328773983,1717782645003,-500.0,0.00021917,3]
[328773984,1717782645013,-500.0,0.00021917,3]
[328773985,1717782645024,-4247.57,0.00021917,3]
[328773986,1717782645036,-388.74845996,0.00021917,3]
[328773987,1717782645046,-200.0,0.00021917,3]
[328773988,1717782645057,-500.0,0.00021917,3]
[328773989,1717782645067,-516.04355064,0.00021917,3]
[328773990,1717782645076,-507.39124414,0.00021917,3]
[328773991,1717782645085,-599.94,0.00021917,3]
[328773992,1717782645095,-501.98384789,0.00021917,3]
[328773993,1717782645104,-223.43329293,0.00021917,3]
[328773994,1717782645114,-500.0,0.00021917,3]
[328773995,1717782645123,-500.0,0.00021917,3]
[328773996,1717782645133,-500.0,0.00021917,3]
[328773997,1717782645142,-11722.15,0.00021917,3]
[328773998,1717782645152,-500.0,0.00021917,3]
[328773999,1717782645162,-3659.46,0.00021917,3]
[328774000,1717782645172,-1340.8,0.00021917,3]
[328774001,1717782645182,-500.0,0.00021917,3]
[328774002,1717782645192,-500.0,0.00021917,3]
[328774003,1717782645201,-500.0,0.00021917,3]
[328774004,1717782645211,-500.0,0.00021917,3]
[328774005,1717782645221,-506.606394,0.00021917,3]
[328774006,1717782645231,-500.0,0.00021917,3]
[328774007,1717782645240,-500.0,0.00021917,3]
[328774008,1717782645249,-934.85,0.00021917,3]
[328774009,1717782645259,-778.21,0.00021917,3]
[328774010,1717782645269,-500.0,0.00021917,3]
[328774011,1717782645279,-505.26828418,0.00021917,3]
[328774012,1717782645288,-529.11474927,0.00021917,3]
[328774013,1717782645299,-500.60506637,0.00021917,3]
[328774014,1717782645310,-500.0,0.00021917,3]
[328774015,1717782645322,-500.0,0.00021917,3]
[328774016,1717782645331,-500.0,0.00021917,3]
[328774017,1717782645340,-500.0,0.00021917,3]
[328774018,1717782645350,-504.00552578,0.00021917,3]
[328774019,1717782645360,-500.0,0.00021917,3]
[328774020,1717782645372,-1168.45,0.00021917,3]
[328774021,1717782645381,-500.0,0.00021917,3]
[328774022,1717782645391,-500.0,0.00021917,3]
[328774023,1717782645400,-500.0,0.00021917,3]
[328774024,1717782645410,-500.0,0.00021917,3]
[328774025,1717782645419,-500.0,0.00021917,3]
[328774026,1717782645429,-562.94173045,0.00021917,3]
[328774027,1717782645438,-500.0,0.00021917,3]
[328774028,1717782645448,-500.0,0.00021917,3]
[328774029,1717782645457,-500.0,0.00021917,3]
[328774030,1717782645467,-156.89015696,0.00021917,3]
[328774031,1717782645476,-500.0,0.00021917,3]
[328774032,1717782645485,-502.36609563,0.00021917,3]
[328774033,1717782645495,-505.80012651,0.00021917,3]
[328774034,1717782645504,-1063.88,0.00021917,3]
[328774035,1717782645514,-500.0,0.00021917,3]
[328774036,1717782645523,-500.0,0.00021917,3]
[328774037,1717782645532,-1539.4,0.00021917,3]
[328774038,1717782645542,-500.0,0.00021917,3]
[328774039,1717782645552,-5882.95,0.00021917,3]
[328774040,1717782645561,-500.0,0.00021917,3]
[328774041,1717782645572,-500.0,0.00021917,3]
[328774042,1717782645581,-500.0,0.00021917,3]
[328774043,1717782645591,-723.68,0.00021917,3]
[328774044,1717782645605,-500.0,0.00021917,3]
[328774045,1717782645614,-509.72024102,0.00021917,3]
[328774046,1717782645624,-29857.54,0.00021917,3]
[328774047,1717782645634,-500.0,0.00021917,2]
[328774048,1717782645645,-501.90238856,0.00021917,3]
[328774049,1717782645655,-1269.67,0.00021917,3]
[328774050,1717782645664,-500.0,0.00021917,3]
[328774051,1717782645673,-433.09203744,0.00021917,3]
[328774054,1717782647075,-1302.5,0.00021916,2]
[328774055,1717782647085,-107.46,0.00021916,2]
[328774072,1717782744071,302.82630629,9.999e-05,2]
[328774147,1717783323735,154.93802479,9.999e-05,2]
[328774154,1717783340814,261.91979643,9.999e-05,2]
[328774155,1717783375977,285.76830085,9.999e-05,2]
[328774156,1717783376034,164.35,0.00010959,2]
[328774166,1717783546775,2094.55480733,0.00010959,2]
[328774168,1717783555189,515.43295454,9.999e-05,2]
[328774169,1717783562745,1607.49579169,0.00010959,2]
[328774170,1717783564663,154.9690062,0.000137,2]
[328774171,1717783586627,154.9690062,9.999e-05,2]
[328774178,1717783655103,-2036.10483651,0.00014999,2]
[328774179,1717783674338,261.91979643,0.00014999,2]
[328774180,1717783694483,285.76830085,0.00014999,2]
[328774181,1717783739086,200.0,0.00029901,120]
[328774391,1717783834675,-315.71,0.00016439,2]
[328774396,1717783834687,-986.79,0.00016439,2]
[328774400,1717783834696,-1100.27196223,0.00016439,2]
[328774404,1717783834706,-59558.09165776,0.0001644,2]
[328774407,1717783834716,-11663.69950156,0.00016441,2]
[328774410,1717783834728,-308.76847881,0.00016441,2]
[328774412,1717783834739,-1390.0,0.00016441,2]
[328774414,1717783834750,-1780.75143039,0.00016441,2]
[328774416,1717783834762,-5464.50000002,0.00016441,2]
[328774418,1717783834773,-4292.28058922,0.00016441,2]
[328774421,1717783834783,-285.76830085,0.00017342,2]
[328774423,1717783834798,-2112.86517201,0.0001743,2]
[328774425,1717783834808,-263.94164731,0.00017444,2]
[328774427,1717783834817,-190.126555,0.00017444,2]
[328774429,1717783834827,-372.05345955,0.00017444,2]
[328774431,1717783834837,-2035.47539269,0.00017445,2]
[328774433,1717783834846,-406.98328074,0.00017447,2]
[328774435,1717783834855,-1281.31823399,0.00017447,2]
[328774437,1717783834864,-190.61789588,0.00017447,2]
[328774439,1717783834874,-303.15870369,0.00017447,2]
[328774440,1717783834883,-686.12053619,0.00017447,2]
[328774442,1717783834892,-284.4592241,0.00017447,2]
[328774444,1717783834902,-302.40695396,0.00017447,2]
[328774446,1717783834911,-247.03908741,0.00017447,2]
[328774448,1717783834920,-155.41742051,0.00017447,2]
[328774449,1717783834930,-2394.77842552,0.00017448,2]
[328774450,1717783834940,-156.8919944,0.00017448,2]
[328774451,1717783834949,-177.9734871,0.00017899,2]
[328774452,1717783834959,-1910.49735366,0.00017998,2]
[328774453,1717783834969,-6909.3611185,0.00017999,2]
[328774454,1717783834981,-710.4329038,0.00018,2]
[328774456,1717783834994,-441.93972625,0.000189,2]
[328774458,1717783835003,-411.24156106,0.00019178,2]
[328774460,1717783835013,-260.48170104,0.00019178,2]
[328774462,1717783835023,-354.80305225,0.00019178,2]
[328774464,1717783835033,-500.0,0.00019178,2]
[328774465,1717783835047,-588.00900006,0.00019178,2]
[328774467,1717783835057,-500.0,0.00019178,2]
[328774469,1717783835068,-500.0,0.00019178,2]
[328774471,1717783835078,-303.45495751,0.00019178,2]
[328774473,1717783835089,-500.0,0.00019178,2]
[328774475,1717783835098,-163.39502356,0.00019178,2]
[328774477,1717783835108,-500.0,0.00019178,2]
[328774479,1717783835118,-155.6,0.00019712,3]
[328774481,1717783835127,-177.9734871,0.00019858,2]
[328774483,1717783835137,-931.88170639,0.0002,2]
[328774485,1717783835146,-938.35106517,0.000201,2]
[328774487,1717783835156,-155.6,0.00020223,3]
[328774489,1717783835166,-499.0,0.00020609,2]
[328774491,1717783835175,-155.6,0.00020734,3]
[328774493,1717783835185,-297.0634883,0.0002099,2]
[328774495,1717783835195,-7369.57739568,0.00021,2]
[328774497,1717783835205,-155.6,0.00021244,5]
[328774499,1717783835215,-150.0,0.000215,2]
[328774501,1717783835224,-418.2732194,0.00021538,2]
[328774503,1717783835234,-153.0,0.00021538,2]
[328774505,1717783835244,-153.0,0.00021538,2]
[328774507,1717783835253,-306.0,0.00021538,2]
[328774509,1717783835263,-500.0,0.000216,7]
[328774511,1717783835273,-500.0,0.000216,7]
[328774513,1717783835283,-500.0,0.000216,7]
[328774515,1717783835295,-500.0,0.000216,7]
[328774517,1717783835305,-500.0,0.000216,7]
[328774519,1717783835315,-500.0,0.000216,7]
[328774521,1717783835324,-500.0,0.000216,7]
[328774523,1717783835334,-500.0,0.000216,7]
[328774525,1717783835344,-500.0,0.000216,7]
[328774527,1717783835354,-500.0,0.000216,7]
[328774529,1717783835364,-500.0,0.000216,7]
[328774531,1717783835374,-500.0,0.000216,7]
[328774533,1717783835384,-500.0,0.000216,7]
[328774535,1717783835394,-500.0,0.000216,7]
[328774537,1717783835404,-500.0,0.000216,7]
[328774539,1717783835413,-500.0,0.000216,7]
[328774541,1717783835423,-412.06,0.000216,7]
[328774543,1717783835433,-500.0,0.000216,7]
[328774545,1717783835442,-155.6,0.00021755,5]
[328774547,1717783835452,-151.0,0.00021755,5]
[328774549,1717783835462,-306.0,0.00021781,2]
[328774551,1717783835471,-239.9134,0.00021807,2]
[328774553,1717783835481,-1000.0,0.00021808,2]
[328774555,1717783835491,-292.3309227,0.00021812,2]
[328774557,1717783835502,-302.37794164,0.00021815,2]
[328774559,1717783835511,-400.09687121,0.00021815,2]
[328774561,1717783835522,-200.18040419,0.00021815,2]
[328774563,1717783835536,-1714.8695958,0.00021815,2]
[328774565,1717783835549,-1856.37860173,0.00021816,2]
[328774567,1717783835561,-1143.62139827,0.00021816,2]
[328774569,1717783835570,-380.0429,0.00021816,2]
[328774571,1717783835580,-4690.01539306,0.00021817,7]
[328774573,1717783835589,-12780.84575049,0.00021817,3]
[328774576,1717783835601,-547.19943614,0.00021817,3]
[328774578,1717783835612,-3908.85634693,0.00021817,3]
[328774580,1717783835624,-2419.33060771,0.00021817,3]
[328774581,1717783835636,-12893.23274807,0.00021817,3]
[328774583,1717783835648,-1805.78758725,0.00021817,3]
[328774586,1717783835660,-2168.60335237,0.00021817,3]